bitfinex-derivatives/quotes_SOLF0:USTF0_20251002
["timestamp","ask_amount","ask_price","bid_price","bid_amount"]
[1759436261136,11.5771,231.97,231.88,105.66]
[1759436261625,7.7,231.97,231.88,105.66]
[1759436261830,7.7,231.94,231.82,0.75044477]
[1759436262033,2.76349903,231.95,231.83,21.68]
[1759436262235,3.8782,231.91,231.83,21.68]
[1759436262534,7.7,231.9,231.83,21.68]
[1759436267238,3.8779,231.92,231.83,21.68]
[1759436268433,3.8775,231.95,231.83,21.68]
[1759436269437,3.8775,231.95,231.84,51.98]
[1759436269934,3.8775,231.95,231.85,78.14]
[1759436270131,3.8775,231.95,231.86,105.66]
[1759436273945,3.8775,231.95,231.87,105.66]
[1759436274845,7.7,231.93,231.75,2.76349903]
[1759436275041,2.76349903,231.91,231.81,105.66]
[1759436275341,2.76349903,231.91,231.78,105.66]
[1759436275748,7.7,231.9,231.78,105.66]
[1759436276244,3.879,231.86,231.78,105.66]
[1759436276441,10.46349903,231.9,231.78,105.66]
[1759436277949,10.46349903,231.9,231.76,3.8805]
[1759436278143,10.46349903,231.9,231.79,105.66]
[1759436278549,3.8784,231.89,231.79,105.66]
[1759436278743,10.46349903,231.9,231.79,105.66]
[1759436279248,3.8787,231.88,231.8,105.66]
[1759436279652,7.7,231.9,231.8,105.66]
[1759436279948,2.76349903,231.88,231.8,105.66]
[1759436280143,7.7,231.87,231.81,105.66]
[1759436280542,2.76349903,231.88,231.81,105.66]
[1759436281446,3.8784,231.89,231.81,105.66]
[1759436282852,7.7,231.9,231.81,105.66]
[1759436284550,11.5782,231.9,231.81,105.66]
[1759436285246,7.7,231.9,231.81,105.66]
[1759436285459,7.73,231.94,231.81,105.66]
[1759436286146,7.73,231.99,231.83,2.76349903]
[1759436286450,7.73,231.99,231.84,3.8792]
[1759436287147,7.73,231.99,231.84,6.64269903]
[1759436287654,7.73,231.99,231.84,2.76349903]
[1759436287946,7.73,231.93,231.8,29.1]
[1759436290249,1.77064685,231.92,231.81,1.77064685]
[1759436290554,1.77064685,231.89,231.81,60.52]
[1759436292854,5.64914685,231.89,231.81,60.52]
[1759436293155,7.73,231.88,231.81,82.44]
[1759436293952,3.8788,231.87,231.81,82.44]
[1759436295952,3.8788,231.87,231.76,1.77064685]
[1759436296154,3.8788,231.87,231.77,104.08]
[1759436297058,3.8788,231.87,231.76,1.77064685]
[1759436297261,3.8788,231.87,231.77,105.7]
[1759436299955,7.73,231.88,231.74,0.75062282]
[1759436299956,1.77064685,231.86,231.74,0.75062282]
[1759436300162,7.73,231.85,231.74,0.75062282]
[1759436300357,7.73,231.85,231.75,105.68]
[1759436302368,13.37984685,231.85,231.75,105.68]
[1759436305569,1.77064685,231.82,231.75,105.68]
[1759436306369,1.77064685,231.82,231.73,315.37064685]
[1759436306370,8.88064685,231.82,231.73,313.6]
[1759436306567,8.88064685,231.82,231.74,105.7]
[1759436307669,3.8799,231.81,231.74,105.7]
[1759436308262,7.11,231.8,231.75,105.7]
[1759436308467,10.9899,231.81,231.75,105.7]
[1759436310171,3.8802,231.79,231.73,313.6]
[1759436310373,10.9902,231.79,231.74,105.7]
[1759436311571,11.6704,231.78,231.75,105.7]
[1759436311970,3.8804,231.78,231.75,105.7]
[1759436312167,11.6706,231.76,231.75,105.7]
[1759436312968,7.79,231.76,231.75,105.7]
[1759436313175,1.77064685,231.79,231.75,105.7]
[1759436313368,7.79,231.78,231.73,313.6]
[1759436313565,1.77064685,231.79,231.74,105.7]
[1759436314673,3.8807,231.76,231.74,105.7]
[1759436315875,1.77064685,231.79,231.74,105.7]
[1759436316076,7.79,231.78,231.74,105.7]
[1759436316773,11.6705,231.77,231.74,105.7]
[1759436317477,7.79,231.77,231.74,105.7]
[1759436318779,9.56064685,231.79,231.74,105.7]
[1759436318969,7.79,231.78,231.74,105.7]
[1759436319572,1.77064685,231.79,231.74,105.7]
[1759436320489,7.79,231.78,231.63,12.83908301]
[1759436320781,7.79,231.78,231.71,1.77064685]
[1759436320977,3.88,231.8,231.72,41.12]
[1759436321781,3.8796,231.82,231.72,41.12]
[1759436322472,3.8799,231.8,231.72,41.12]
[1759436323479,9.56064685,231.83,231.72,41.12]
[1759436323480,3.8803,231.78,231.72,41.12]
[1759436324273,3.8799,231.81,231.72,41.12]
[1759436324583,9.56064685,231.83,231.72,41.12]
[1759436324974,3.8802,231.79,231.72,41.12]
[1759436325179,9.56064685,231.83,231.72,41.12]
[1759436325180,7.79,231.83,231.74,1.77064685]
[1759436326280,1.77064685,231.86,231.74,1.77064685]
[1759436326680,9.56064685,231.87,231.74,1.77064685]
[1759436327180,11.6687,231.87,231.74,1.77064685]
[1759436327381,7.79,231.87,231.77,1.77064685]
[1759436328684,3.8792,231.85,231.77,1.77064685]
[1759436329481,3.8794,231.83,231.77,1.77064685]
[1759436330494,3.8794,231.83,231.78,101.18]
[1759436332591,11.6694,231.83,231.78,101.18]
[1759436334986,7.79,231.82,231.78,101.18]
[1759436335288,7.79,231.81,231.75,1.77064685]
[1759436335488,11.6697,231.82,231.76,105.7]
[1759436337488,7.79,231.82,231.76,105.7]
[1759436339690,3.8795,231.83,231.76,105.7]
[1759436340291,11.6691,231.85,231.76,105.7]
[1759436340690,11.6691,231.85,231.77,1.77064685]
[1759436340892,7.79,231.85,231.77,1.77064685]
[1759436341391,7.79,231.88,231.8,1.77064685]
[1759436342393,9.40064685,231.93,231.8,1.77064685]
[1759436342887,3.8782,231.91,231.83,1.77064685]
[1759436343092,7.63,231.93,231.84,26.86]
[1759436344393,11.5078,231.93,231.84,26.86]
[1759436344988,7.63,231.93,231.86,1.77064685]
[1759436345190,7.63,231.93,231.84,26.86]
[1759436345191,7.63,231.97,231.89,1.77064685]
[1759436345495,7.63,231.98,231.9,36.9]
[1759436345687,1.77064685,232.0,231.88,1.77064685]
[1759436345892,7.63,231.99,231.89,7.08]
[1759436346095,9.40064685,231.99,231.88,1.77064685]
[1759436346297,3.8771,231.97,231.89,9.68]
[1759436346486,7.63,231.98,231.89,9.68]
[1759436346687,11.507,231.98,231.89,9.68]
[1759436346993,7.63,231.98,231.89,9.68]
[1759436348595,11.5069,231.98,231.89,9.68]
[1759436349394,11.5069,231.98,231.9,25.54]
[1759436349395,3.8772,231.97,231.9,25.54]
[1759436352500,7.63,231.98,231.9,25.54]
[1759436353199,11.507,231.98,231.9,25.54]
[1759436354298,7.63,231.98,231.9,25.54]
[1759436356099,11.5062,232.02,231.9,25.54]
[1759436356398,11.5062,232.02,231.9,28.30464848]
[1759436356799,11.5062,232.02,231.9,32.18284848]
[1759436356996,11.5062,232.02,231.9,28.30464848]
[1759436359097,11.5062,232.02,231.9,32.18284848]
[1759436359298,7.63,232.02,231.9,28.30464848]
[1759436360697,7.63,232.02,231.92,3.8779]
[1759436364508,7.63,232.02,231.93,3.8776]
[1759436364706,7.41,232.07,231.94,2.76464848]
[1759436365814,7.41,232.07,231.95,3.8774]
[1759436366608,7.41,232.07,231.94,2.76464848]
[1759436366808,7.41,232.07,231.95,2.76464848]
[1759436367713,7.41,232.07,231.95,6.64194848]
[1759436368117,7.41,232.05,231.95,2.76464848]
[1759436368416,7.41,232.05,231.95,6.64194848]
[1759436369313,7.41,232.05,231.95,2.76464848]
[1759436369717,7.41,232.11,231.94,2.76464848]
[1759436370718,7.41,232.06,231.94,2.76464848]
[1759436371614,7.74,232.04,231.91,3.878]
[1759436371814,7.74,232.04,231.92,25.18464848]
[1759436372014,7.74,232.07,231.92,25.18464848]
[1759436372518,2.76464848,232.08,231.92,25.18464848]
[1759436372712,7.74,232.03,231.92,25.18464848]
[1759436374915,7.74,232.02,231.92,2.76464848]
[1759436375113,7.74,232.03,231.88,3.8785]
[1759436375413,2.76464848,232.04,231.89,105.54]
[1759436375615,7.74,231.99,231.89,105.54]
[1759436375919,7.74,231.99,231.9,105.54]
[1759436376721,3.8766,232.0,231.9,105.54]
[1759436376925,7.74,231.99,231.9,105.54]
[1759436377222,7.74,231.98,231.91,105.54]
[1759436379617,3.8761,232.03,231.91,105.54]
[1759436379816,7.74,232.02,231.91,105.54]
[1759436380720,7.74,232.02,231.92,3.8777]
[1759436382520,7.74,232.02,231.91,108.30464848]
[1759436384023,7.74,232.06,231.91,105.54]
[1759436384223,7.74,232.03,231.92,105.52]
[1759436384633,2.76464848,232.04,231.92,105.52]
[1759436384925,7.74,232.0,231.92,105.52]
[1759436389123,11.6167,232.0,231.92,105.52]
[1759436389629,3.8768,231.99,231.92,105.52]
[1759436389829,7.74,231.98,231.92,105.52]
[1759436390225,7.74,231.98,231.86,320.10639254]
[1759436390433,7.74,231.98,231.87,105.52]
[1759436391629,3.8772,231.97,231.87,105.52]
[1759436392728,3.8772,231.97,231.86,320.10639254]
[1759436393033,3.8772,231.97,231.88,105.52]
[1759436394225,7.74,231.98,231.88,105.52]
[1759436394726,7.74,232.04,231.88,105.52]
[1759436395029,2.76464848,232.05,231.88,105.52]
[1759436395429,7.74,232.04,231.88,105.52]
[1759436395733,11.6165,232.01,231.88,109.3984]
[1759436400938,3.8767,232.0,231.88,105.52]
[1759436401328,7.74,231.99,231.88,105.52]
[1759436401829,11.6168,231.99,231.88,105.52]
[1759436402539,3.877,231.98,231.87,3.8786]
[1759436402741,3.877,231.98,231.88,105.5]
[1759436402940,7.04,231.97,231.86,320.10639254]
[1759436403241,3.8772,231.96,231.86,317.34174406]
[1759436403438,3.8772,231.96,231.87,105.5]
[1759436403833,7.04,231.97,231.87,105.5]
[1759436404237,7.04,231.97,231.88,105.5]
[1759436406035,7.04,231.97,231.89,105.5]
[1759436406536,3.8773,231.96,231.89,105.5]
[1759436407732,7.04,231.97,231.89,105.5]
[1759436408343,10.9172,231.97,231.86,317.34174406]
[1759436408546,10.9172,231.97,231.9,105.5]
[1759436408940,3.8773,231.96,231.9,105.5]
[1759436409945,7.04,231.97,231.9,105.5]
[1759436412439,1.76931906,231.99,231.9,105.5]
[1759436412837,3.8766,232.0,231.9,105.5]
[1759436413245,8.80931906,232.01,231.9,105.5]
[1759436413640,8.80931906,232.01,231.91,1.76931906]
[1759436413838,7.04,232.01,231.91,1.76931906]
[1759436415542,7.04,232.01,231.91,5.64721906]
[1759436415737,7.04,232.01,231.91,1.76931906]
[1759436417148,10.9165,232.01,231.91,1.76931906]
[1759436417638,3.8767,232.0,231.91,1.76931906]
[1759436417839,8.80931906,232.01,231.88,1.76931906]
[1759436418046,60.2934,232.04,231.89,105.46]
[1759436418047,7.04,231.97,231.89,105.46]
[1759436419951,10.9172,231.97,231.89,105.46]
[1759436420647,3.8773,231.96,231.9,105.46]
[1759436420950,1.76931906,231.95,231.91,105.46]
[1759436421146,7.04,231.94,231.91,105.46]
[1759436422148,3.8773,231.96,231.91,105.46]
[1759436422551,7.04,231.95,231.91,105.46]
[1759436422756,3.8773,231.96,231.91,105.46]
[1759436423053,3.8775,231.95,231.91,105.46]
[1759436423254,7.04,231.94,231.91,105.46]
[1759436423758,3.8777,231.94,231.91,105.46]
[1759436423948,7.04,231.93,231.91,105.46]
[1759436424854,5.64651906,231.97,231.91,105.46]
[1759436429457,3.8773,231.96,231.91,105.46]
[1759436429756,7.23,231.95,231.86,3.70174406]
[1759436429960,7.23,231.95,231.87,105.44]
[1759436431158,3.8777,231.94,231.87,105.44]
[1759436431763,3.8778,231.93,231.86,3.70174406]
[1759436431955,11.5678,231.93,231.87,105.44]
[1759436436161,3.878,231.92,231.87,105.44]
[1759436436763,7.69,231.91,231.87,105.44]
[1759436440665,7.69,231.91,231.86,3.70174406]
[1759436441068,7.69,231.91,231.87,105.44]
[1759436442164,1.76931906,231.88,231.84,313.56]
[1759436442775,7.69,231.85,231.84,313.56]
[1759436443069,9.45931906,231.85,231.84,419.0]
[1759436443267,3.8797,231.82,231.71,313.6]
[1759436443571,3.8797,231.82,231.72,107.20931906]
[1759436444666,13.33851906,231.85,231.72,107.20931906]
[1759436444866,9.45931906,231.85,231.72,107.20931906]
[1759436446677,3.8794,231.84,231.72,107.20931906]
[1759436446869,9.45931906,231.85,231.72,107.20931906]
[1759436447275,3.8795,231.83,231.72,107.20931906]
[1759436447476,9.45931906,231.85,231.72,107.20931906]
[1759436447678,9.45931906,231.82,231.73,105.44]
[1759436448972,9.45931906,231.82,231.73,107.20931906]
[1759436449978,3.8793,231.84,231.73,107.20931906]
[1759436451186,3.8793,231.84,231.73,1.76931906]
[1759436451378,3.8793,231.84,231.74,105.44]
[1759436451779,1.76931906,231.85,231.74,105.44]
[1759436453582,3.8792,231.84,231.74,105.44]
[1759436453983,3.8792,231.84,231.76,1.76931906]
[1759436454685,3.8792,231.84,231.74,105.44]
[1759436454882,3.8792,231.84,231.76,1.76931906]
[1759436459189,1.76931906,231.85,231.76,1.76931906]
[1759436460994,7.69,231.86,231.76,1.76931906]
[1759436464601,7.69,231.86,231.77,1.76931906]
[1759436468300,318.46814232,232.03,231.8,1.76931906]
[1759436468301,67.618,231.98,231.8,1.76931906]
[1759436468501,7.31,231.92,231.83,1.76931906]
[1759436468695,1.76931906,231.93,231.84,21.58]
[1759436469093,7.31,231.92,231.84,21.58]
[1759436470095,3.8782,231.91,231.84,21.58]
[1759436470300,7.31,231.9,231.84,21.58]
[1759436474500,60.3068,231.99,231.84,21.58]
[1759436474501,2.76634899,231.99,231.84,21.58]
[1759436474701,7.31,231.98,231.84,21.58]
[1759436475604,7.31,231.97,231.84,25.4591]
[1759436476708,3.8769,231.98,231.84,25.4591]
[1759436476902,7.31,231.97,231.84,25.4591]
[1759436477206,7.31,231.96,231.84,21.58]
[1759436481405,3.8772,231.97,231.84,21.58]
[1759436481702,2.76634899,231.99,231.85,38.3]
[1759436482211,7.31,231.94,231.85,38.3]
[1759436484814,2.76634899,231.99,231.86,66.78]
[1759436485210,7.17,231.98,231.86,66.78]
[1759436485413,7.17,231.94,231.78,2.76634899]
[1759436485609,2.76634899,231.95,231.79,20.72]
[1759436486211,7.17,231.94,231.79,20.72]
[1759436486408,7.17,231.95,231.79,20.72]
[1759436486708,2.76634899,231.96,231.79,20.72]
[1759436487010,11.0475,231.95,231.81,3.8796]
[1759436487412,11.0475,231.95,231.79,20.72]
[1759436487911,11.0475,231.95,231.82,3.8794]
[1759436488902,11.0477,231.94,231.79,24.5999]
[1759436489104,11.0477,231.94,231.79,20.72]
[1759436489308,7.17,231.93,231.79,20.72]
[1759436489508,7.17,231.93,231.8,101.72]
[1759436489714,3.8777,231.94,231.8,101.72]
[1759436489909,7.17,231.93,231.8,101.72]
[1759436490210,7.17,231.91,231.78,2.76634899]
[1759436490402,7.17,231.95,231.79,105.34]
[1759436490810,7.17,231.95,231.8,105.34]
[1759436491008,3.8782,231.91,231.8,105.34]
[1759436491213,7.17,231.9,231.8,105.34]
[1759436491710,6.64364899,231.96,231.83,3.8794]
[1759436491915,7.05,231.95,231.83,3.8794]
[1759436495015,10.9275,231.95,231.83,3.8794]
[1759436498018,3.8775,231.95,231.8,109.2199]
[1759436498218,3.8775,231.95,231.8,108.10634899]
[1759436498716,7.05,231.94,231.8,108.10634899]
[1759436498914,3.8775,231.95,231.8,108.10634899]
[1759436499108,7.05,231.94,231.8,108.10634899]
[1759436499618,7.05,231.94,231.81,3.8796]
[1759436502620,10.9277,231.94,231.81,3.8796]
[1759436502917,60.3034,232.0,231.79,313.64]
[1759436502918,7.05,231.92,231.79,313.64]
[1759436503219,2.76634899,231.93,231.8,105.3]
[1759436503416,3.8782,231.91,231.8,105.3]
[1759436504218,7.05,231.9,231.8,105.3]
[1759436504412,10.9283,231.9,231.8,105.3]
[1759436504614,3.8783,231.9,231.8,105.3]
[1759436504814,7.05,231.89,231.8,105.3]
[1759436505018,7.05,231.92,231.8,105.3]
[1759436505222,2.76634899,231.93,231.8,105.3]
[1759436505820,60.3256,231.92,231.79,313.64]
[1759436506017,2.76634899,231.89,231.8,105.3]
[1759436506723,7.05,231.88,231.8,105.3]
[1759436506920,2.76634899,231.89,231.8,105.3]
[1759436507120,3.8793,231.84,231.8,105.3]
[1759436507623,7.05,231.83,231.79,313.64]
[1759436507824,3.8793,231.84,231.81,105.3]
[1759436508125,7.05,231.83,231.81,105.3]
[1759436508324,3.8793,231.84,231.81,105.3]
[1759436508525,3.8793,231.84,231.79,313.64]
[1759436508725,7.05,231.84,231.8,105.3]
[1759436509024,2.76634899,231.85,231.8,105.3]
[1759436509224,3.20634899,231.85,231.8,105.3]
[1759436509421,7.05,231.8,231.66,314.41095488]
[1759436509719,2.76634899,231.81,231.67,105.3]
[1759436510118,7.05,231.76,231.67,105.3]
[1759436512121,7.05,231.76,231.68,105.3]
[1759436521136,7.05,231.79,231.68,105.3]
[1759436521338,10.9304,231.77,231.68,105.3]
[1759436521737,7.54,231.75,231.67,0.75093057]
[1759436521933,7.54,231.7,231.67,0.75093057]
[1759436522137,7.54,231.7,231.68,105.32]
[1759436523236,7.54,231.7,231.67,0.75093057]
[1759436523435,7.54,231.7,231.68,105.32]
[1759436523641,7.54,231.69,231.66,313.66]
[1759436523837,2.76634899,231.72,231.66,313.66]
[1759436523838,2.76634899,231.72,231.66,105.32]
[1759436524136,2.76634899,231.72,231.61,105.32]
[1759436524137,7.54,231.67,231.61,105.32]
[1759436524335,7.54,231.68,231.62,105.32]
[1759436524830,11.422,231.68,231.62,105.32]
[1759436525237,7.54,231.68,231.62,105.32]
[1759436525437,2.76634899,231.69,231.62,105.32]
[1759436525647,7.54,231.68,231.62,105.32]
[1759436525828,7.54,231.64,231.62,105.32]
[1759436526026,2.76634899,231.65,231.62,105.32]
[1759436526439,11.4227,231.64,231.62,105.32]
[1759436526735,7.54,231.63,231.62,105.32]
[1759436526932,7.54,231.63,231.53,313.82]
[1759436527136,2.76634899,231.65,231.54,105.34]
[1759436528036,7.54,231.64,231.54,105.34]
[1759436529233,2.76634899,231.65,231.54,105.34]
[1759436529642,7.54,231.61,231.54,105.34]
[1759436531039,3.8834,231.6,231.54,105.34]
[1759436532632,7.54,231.61,231.53,313.82]
[1759436532836,7.54,231.6,231.54,105.36]
[1759436533341,11.4239,231.57,231.54,105.36]
[1759436534246,13.19972674,231.57,231.54,105.36]
[1759436535041,11.4241,231.55,231.54,105.36]
[1759436535242,7.54,231.55,231.44,5.66162674]
[1759436535448,1.77582674,231.54,231.45,28.4]
[1759436536141,7.54,231.55,231.45,28.4]
[1759436536345,5.65952674,231.58,231.46,5.66122674]
[1759436536546,1.77582674,231.58,231.46,1.77582674]
[1759436537536,3.8841,231.56,231.46,1.77582674]
[1759436538540,3.8842,231.55,231.46,1.77582674]
[1759436539249,7.54,231.56,231.46,1.77582674]
[1759436539747,11.4241,231.56,231.46,1.77582674]
[1759436540046,7.54,231.56,231.46,1.77582674]
[1759436540248,1.77582674,231.55,231.45,28.4]
[1759436541055,1.77582674,231.55,231.47,1.77582674]
[1759436541255,7.54,231.56,231.47,1.77582674]
[1759436542252,3.8842,231.54,231.47,1.77582674]
[1759436543852,3.8842,231.54,231.46,1.77582674]
[1759436544852,3.8842,231.54,231.45,28.4]
[1759436544853,7.23,231.51,231.45,28.4]
[1759436546254,7.23,231.53,231.46,105.38]
[1759436546449,1.77582674,231.52,231.44,0.75168481]
[1759436546653,7.23,231.51,231.45,105.38]
[1759436546854,3.8852,231.49,231.45,105.38]
[1759436547156,11.1152,231.49,231.45,105.38]
[1759436549460,3.8846,231.52,231.45,105.38]
[1759436551359,7.23,231.53,231.45,105.38]
[1759436551559,5.66012674,231.54,231.45,105.38]
[1759436553453,3.8843,231.54,231.47,1.77582674]
[1759436556058,3.8845,231.53,231.47,1.77582674]
[1759436556359,7.82,231.55,231.47,1.77582674]
[1759436557161,11.7041,231.55,231.47,1.77582674]
[1759436557356,7.82,231.55,231.47,1.77582674]
[1759436557561,7.82,231.62,231.5,1.77582674]
[1759436557757,7.82,231.59,231.5,1.77582674]
[1759436557959,7.82,231.59,231.51,18.76]
[1759436558658,1.77582674,231.62,231.51,18.76]
[1759436558860,7.82,231.61,231.51,18.76]
[1759436559561,3.8834,231.6,231.5,1.77582674]
[1759436559762,7.82,231.61,231.52,36.58]
[1759436559962,7.82,231.61,231.5,1.77582674]
[1759436560162,7.82,231.61,231.51,1.64]
[1759436560364,13.47952674,231.58,231.51,1.64]
[1759436561067,13.47952674,231.58,231.52,19.84]
[1759436562465,13.47902674,231.61,231.52,19.84]
[1759436562862,1.77582674,231.64,231.53,1.77582674]
[1759436563062,7.82,231.63,231.53,1.77582674]
[1759436563466,7.82,231.63,231.52,19.84]
[1759436563764,7.82,231.63,231.53,1.77582674]
[1759436564568,3.8832,231.61,231.53,1.77582674]
[1759436565663,3.8832,231.61,231.54,41.98]
[1759436566865,3.8832,231.61,231.55,62.08]
[1759436567774,7.82,231.63,231.55,62.08]
[1759436567974,7.82,231.64,231.44,0.75168481]
[1759436568175,7.82,231.61,231.51,1.77582674]
[1759436568772,7.82,231.58,231.44,0.75168481]
[1759436569070,7.82,231.55,231.45,21.13582674]
[1759436569673,3.8844,231.54,231.45,21.13582674]
[1759436570173,3.8844,231.54,231.45,19.36]
[1759436570375,5.66042674,231.53,231.45,19.36]
[1759436570675,1.77582674,231.53,231.46,105.36]
[1759436571675,11.7042,231.55,231.46,107.13582674]
[1759436571867,7.82,231.55,231.46,107.13582674]
[1759436572070,5.65962674,231.57,231.46,107.13582674]
[1759436572566,3.884,231.56,231.46,107.13582674]
[1759436573173,7.82,231.55,231.46,107.13582674]
[1759436574577,3.8844,231.54,231.46,107.13582674]
[1759436575879,60.4022,231.62,231.31,105.36]
[1759436575880,7.82,231.5,231.31,105.36]
[1759436576078,7.82,231.5,231.43,1.77582674]
[1759436577381,1.77582674,231.49,231.41,102.0]
[1759436577578,7.82,231.48,231.41,102.0]
[1759436578681,11.7053,231.48,231.41,102.0]
[1759436581586,3.8856,231.47,231.41,102.0]
[1759436581880,1.77582674,231.47,231.41,102.0]
[1759436584684,3.8852,231.49,231.41,102.0]
[1759436584685,1.77582674,231.5,231.41,102.0]
[1759436585788,7.43,231.49,231.41,102.0]
[1759436586187,1.77582674,231.48,231.41,102.0]
[1759436588289,5.66122674,231.48,231.41,102.0]
[1759436588478,1.77582674,231.48,231.41,102.0]
[1759436589588,3.8856,231.47,231.41,102.0]
[1759436591490,9.20582674,231.49,231.41,102.0]
[1759436592690,3.8854,231.48,231.41,102.0]
[1759436593592,9.20582674,231.49,231.41,102.0]
[1759436594691,3.8853,231.48,231.41,102.0]
[1759436595492,5.66112674,231.48,231.41,102.0]
[1759436596195,3.8853,231.48,231.41,102.0]
[1759436596497,7.43,231.49,231.41,102.0]
[1759436598002,7.43,231.53,231.41,102.0]
[1759436599201,3.8847,231.52,231.41,105.8863]
[1759436601103,3.8842,231.55,231.43,3.8861]
[1759436601900,7.43,231.57,231.43,3.8861]
[1759436601901,11.3138,231.57,231.43,3.8861]
[1759436602095,7.43,231.61,231.43,2.77645412]
[1759436603706,3.8834,231.59,231.47,3.8853]
[1759436605014,11.3131,231.61,231.47,3.8853]
[1759436605212,11.3131,231.61,231.48,3.8851]
[1759436605409,11.3131,231.61,231.49,17.5]
[1759436607619,7.43,231.61,231.49,21.3849]
[1759436608312,7.55,231.67,231.5,63.20885412]
[1759436608616,7.55,231.67,231.54,2.77645412]
[1759436608816,3.8824,231.66,231.54,2.77645412]
[1759436609015,7.55,231.65,231.54,2.77645412]
[1759436609213,7.55,231.65,231.55,105.74]
[1759436612417,2.77645412,231.66,231.5,314.16]
[1759436612614,2.77645412,231.66,231.51,105.68]
[1759436612821,7.3,231.65,231.51,105.68]
[1759436613122,2.77645412,231.66,231.51,105.68]
[1759436613320,7.3,231.62,231.51,105.68]
[1759436613620,7.3,231.62,231.52,105.68]
[1759436614323,2.77645412,231.64,231.52,105.68]
[1759436614817,7.3,231.71,231.53,60.4246]
[1759436615124,7.3,231.71,231.54,2.77645412]
[1759436616017,2.77645412,231.67,231.55,32.28]
[1759436616323,7.3,231.66,231.55,32.28]
[1759436619121,7.3,231.66,231.56,16.41]
[1759436621822,7.3,231.7,231.56,16.41]
[1759436622616,7.3,231.7,231.57,3.8836]
[1759436624323,2.77645412,231.72,231.58,109.34]
[1759436624525,7.3,231.71,231.58,109.34]
[1759436625018,7.3,231.7,231.58,109.34]
[1759436625322,2.77645412,231.72,231.58,109.34]
[1759436625516,7.3,231.71,231.58,109.34]
[1759436627725,7.3,231.71,231.6,3.8831]
[1759436632230,7.3,231.73,231.58,24.2836]
[1759436632432,7.3,231.68,231.59,105.66]
[1759436634127,7.3,231.68,231.58,24.2836]
[1759436634326,2.77645412,231.69,231.58,20.4]
[1759436634523,2.77645412,231.69,231.59,72.4]
[1759436634734,7.3,231.68,231.59,72.4]
[1759436638840,7.3,231.66,231.59,72.4]
[1759436639239,7.3,231.68,231.59,72.4]
[1759436639438,2.77645412,231.65,231.59,72.4]
[1759436639838,3.8829,231.63,231.6,16.41]
[1759436640243,2.77645412,231.61,231.6,16.41]
[1759436640444,10.07645412,231.61,231.6,16.41]
[1759436640845,10.51645412,231.61,231.59,72.4]
[1759436641036,7.3,231.6,231.59,72.4]
[1759436642844,7.74,231.6,231.59,72.4]
[1759436643735,7.3,231.6,231.59,72.4]
[1759436651050,7.09,231.58,231.52,20.42]
[1759436651250,2.77645412,231.56,231.52,20.42]
[1759436651744,7.09,231.55,231.52,20.42]